fUSD/lending_fUSD_20251225
["ID","MTS","AMOUNT","RATE_DAILY","PERIOD"]
[399767101,1766661054718,-162.1085878,0.00026092,4]
[399767102,1766661054730,-150.0,0.00026096,4]
[399767103,1766661054740,-150.0,0.00026096,4]
[399767104,1766661054751,-150.0,0.00026096,4]
[399767105,1766661054760,-150.0,0.00026101,4]
[399767106,1766661054771,-150.0,0.00026101,4]
[399767107,1766661054781,-150.0,0.00026115,4]
[399767108,1766661054791,-225.69814737,0.00026119,4]
[399767109,1766661054802,-221.74035981,0.00026119,4]
[399767110,1766661054812,-152.33568841,0.00026119,4]
[399767111,1766661054822,-311.72094097,0.00026119,4]
[399767112,1766661054832,-162.1085878,0.00026119,4]
[399767113,1766661054842,-150.0,0.00026129,4]
[399767114,1766661054854,-225.69814737,0.00026145,4]
[399767115,1766661054864,-221.74035981,0.00026145,4]
[399767116,1766661054875,-152.33568841,0.00026145,4]
[399767117,1766661054885,-311.72094097,0.00026145,4]
[399767118,1766661054895,-162.1085878,0.00026145,4]
[399767119,1766661054906,-150.0,0.0002615,4]
[399767120,1766661054916,-150.0,0.00026162,4]
[399767121,1766661054926,-150.0,0.00026162,4]
[399767122,1766661054936,-225.69814737,0.00026172,4]
[399767123,1766661054999,-221.74035981,0.00026172,4]
[399767124,1766661055010,-152.33568841,0.00026172,4]
[399767125,1766661055020,-311.72094097,0.00026172,4]
[399767126,1766661055029,-162.1085878,0.00026172,4]
[399767127,1766661055039,-150.0,0.00026195,4]
[399767128,1766661055049,-225.69814737,0.00026199,4]
[399767129,1766661055060,-221.74035981,0.00026199,4]
[399767130,1766661055070,-152.33568841,0.00026199,4]
[399767131,1766661055084,-311.72094097,0.00026199,4]
[399767132,1766661055094,-162.1085878,0.00026199,4]
[399767133,1766661055103,-150.0,0.00026199,4]
[399767134,1766661055113,-150.0,0.00026199,4]
[399767135,1766661055126,-150.0,0.00026199,4]
[399767136,1766661055136,-225.69814737,0.00026226,4]
[399767137,1766661055147,-221.74035981,0.00026226,4]
[399767138,1766661055157,-152.33568841,0.00026226,4]
[399767139,1766661055167,-311.72094097,0.00026226,4]
[399767140,1766661055177,-162.1085878,0.00026226,4]
[399767141,1766661055187,-150.0,0.00026228,4]
[399767142,1766661055196,-150.0,0.00026228,4]
[399767143,1766661055207,-150.0,0.00026228,4]
[399767144,1766661055216,-644.13,0.00026244,30]
[399767145,1766661055227,-150.0,0.00026248,4]
[399767146,1766661055238,-225.69814737,0.00026252,4]
[399767147,1766661055248,-221.74035981,0.00026252,4]
[399767148,1766661055258,-152.33568841,0.00026252,4]
[399767149,1766661055269,-311.72094097,0.00026252,4]
[399767150,1766661055279,-162.1085878,0.00026252,4]
[399767151,1766661055290,-150.0,0.00026261,4]
[399767152,1766661055299,-225.69814737,0.00026279,4]
[399767153,1766661055309,-221.74035981,0.00026279,4]
[399767154,1766661055320,-152.33568841,0.00026279,4]
[399767155,1766661055330,-311.72094097,0.00026279,4]
[399767156,1766661055339,-162.1085878,0.00026279,4]
[399767157,1766661055349,-150.0,0.00026294,4]
[399767158,1766661055359,-150.0,0.00026294,4]
[399767159,1766661055368,-150.0,0.00026297,4]
[399767160,1766661055378,-150.0,0.00026297,4]
[399767161,1766661055388,-225.69814737,0.00026306,4]
[399767162,1766661055398,-221.74035981,0.00026306,4]
[399767163,1766661055408,-152.33568841,0.00026306,4]
[399767164,1766661055418,-311.72094097,0.00026306,4]
[399767165,1766661055427,-162.1085878,0.00026306,4]
[399767166,1766661055437,-150.0,0.00026328,4]
[399767167,1766661055448,-225.69814737,0.00026333,4]
[399767168,1766661055458,-221.74035981,0.00026333,4]
[399767169,1766661055467,-152.33568841,0.00026333,4]
[399767170,1766661055477,-311.72094097,0.00026333,4]
[399767171,1766661055486,-162.1085878,0.00026333,4]
[399767172,1766661055496,-150.0,0.00026346,4]
[399767173,1766661055505,-225.69814737,0.00026359,4]
[399767174,1766661055515,-221.74035981,0.00026359,4]
[399767175,1766661055525,-152.33568841,0.00026359,4]
[399767176,1766661055534,-311.72094097,0.00026359,4]
[399767177,1766661055543,-162.1085878,0.00026359,4]
[399767178,1766661055554,-150.0,0.00026361,4]
[399767179,1766661055564,-150.0,0.00026361,4]
[399767180,1766661055573,-150.0,0.00026361,4]
[399767181,1766661055582,-225.69814737,0.00026386,4]
[399767182,1766661055591,-221.74035981,0.00026386,4]
[399767183,1766661055601,-152.33568841,0.00026386,4]
[399767184,1766661055611,-311.72094097,0.00026386,4]
[399767185,1766661055620,-162.1085878,0.00026386,4]
[399767186,1766661055630,-150.0,0.00026394,4]
[399767187,1766661055639,-150.0,0.00026395,4]
[399767188,1766661055649,-150.0,0.00026395,4]
[399767189,1766661055658,-27344.30538545,0.000264,2]
[399767190,1766661055668,-150.0,0.00026411,2]
[399767191,1766661055677,-150.0,0.00026411,2]
[399767192,1766661055686,-150.0,0.00026411,2]
[399767193,1766661055696,-225.69814737,0.00026413,4]
[399767194,1766661055705,-221.74035981,0.00026413,4]
[399767195,1766661055714,-152.33568841,0.00026413,4]
[399767196,1766661055724,-311.72094097,0.00026413,4]
[399767197,1766661055733,-162.1085878,0.00026413,4]
[399767198,1766661055742,-150.0,0.00026427,4]
[399767199,1766661055752,-150.0,0.00026427,4]
[399767200,1766661055762,-225.69814737,0.0002644,4]
[399767201,1766661055771,-221.74035981,0.0002644,4]
[399767202,1766661055781,-152.33568841,0.0002644,4]
[399767203,1766661055792,-311.72094097,0.0002644,4]
[399767204,1766661055802,-162.1085878,0.0002644,4]
[399767205,1766661055811,-150.0,0.00026444,4]
[399767206,1766661055821,-150.0,0.0002646,4]
[399767207,1766661055831,-225.69814737,0.00026466,4]
[399767208,1766661055841,-221.74035981,0.00026466,4]
[399767209,1766661055851,-152.33568841,0.00026466,4]
[399767210,1766661055860,-311.72094097,0.00026466,4]
[399767211,1766661055870,-162.1085878,0.00026466,4]
[399767212,1766661055879,-225.69814737,0.00026493,4]
[399767213,1766661055889,-184.63789102,0.00026493,4]
[399767214,1766661055898,-221.74035981,0.00026493,4]
[399767215,1766661055907,-169.35594183,0.00026493,4]
[399767216,1766661055917,-152.33568841,0.00026493,4]
[399767217,1766661055927,-311.72094097,0.00026493,4]
[399767218,1766661055936,-249.72561223,0.00026493,4]
[399767219,1766661055945,-162.1085878,0.00026493,4]
[399767220,1766661055955,-216.83783771,0.00026493,4]
[399767221,1766661055965,-195.3247393,0.00026493,4]
[399767222,1766661055974,-176.41435156,0.00026493,4]
[399767223,1766661055985,-269.94910163,0.00026493,4]
[399767224,1766661055994,-247.55174509,0.00026493,4]
[399767225,1766661056006,-167.87580032,0.00026493,4]
[399767226,1766661056016,-30009.83,0.000265,7]
[399767227,1766661056026,-3240.1,0.0002654,2]
[399767228,1766661056036,-2016.84817673,0.00026614,2]
[399767229,1766661056046,-1000.0,0.00026676,2]
[399767230,1766661056055,-220.70649537,0.0002682,30]
[399767231,1766661056065,-200.0,0.00027,2]
[399767232,1766661056077,-2000.0,0.00027,2]
[399767233,1766661056087,-2424.532585,0.0002701,2]
[399767234,1766661056097,-150.0,0.00027369,2]
[399767235,1766661056107,-4089.85640552,0.0002739,2]
[399767236,1766661056118,-8079.47086046,0.0002739,2]
[399767237,1766661056128,-402.0,0.00027397,7]
[399767238,1766661056137,-387.10378344,0.00027397,2]
[399767239,1766661056147,-151.19764956,0.00027397,2]
[399767240,1766661056158,-484.4565372,0.00027397,7]
[399767241,1766661056167,-150.0,0.00027397,7]
[399767242,1766661056177,-500.0,0.00027397,20]
[399767243,1766661056187,-876.42,0.00027397,16]
[399767244,1766661056197,-300.0,0.00027397,2]
[399767245,1766661056207,-257.91778498,0.00027426,2]
[399767246,1766661056218,-200.10967967,0.000275,2]
[399767247,1766661056228,-546.65413557,0.000275,2]
[399767248,1766661056238,-11296.92,0.00027671,2]
[399767249,1766661056248,-2000.0,0.000277,2]
[399767250,1766661056259,-175.82,0.000279,7]
[399767251,1766661056268,-573.89559161,0.000279,2]
[399767252,1766661056278,-3198.71244042,0.000279,2]
[399767253,1766661056288,-682.5149673,0.000279,2]
[399767254,1766661056298,-263.03989767,0.000279,2]
[399767255,1766661056307,-161.0,0.0002791,14]
[399767256,1766661056317,-70961.4371942,0.00028,2]
[399767257,1766661056327,-50600.92691763,0.00028,2]
[399767258,1766661056336,-30009.83,0.000281,7]
[399767259,1766661056346,-3459.0,0.00028171,2]
[399767260,1766661056356,-1327.0,0.00028171,2]
[399767261,1766661056365,-612.0,0.00028171,2]
[399767262,1766661056375,-1610.0,0.00028171,2]
[399767263,1766661056384,-1263.0,0.00028171,2]
[399767264,1766661056394,-432.0,0.00028171,2]
[399767265,1766661056406,-564.0,0.00028181,2]
[399767266,1766661056415,-4807.0,0.00028181,2]
[399767267,1766661056424,-3240.1,0.0002832,2]
[399767268,1766661056434,-481.42,0.00028571,2]
[399767269,1766661056444,-209.0,0.0002882,30]
[399767270,1766661056455,-170.92,0.00028927,2]
[399767271,1766661056466,-300.0,0.00028927,2]
[399767272,1766661056476,-150.0,0.00028927,2]
[399767273,1766661056486,-150.0,0.00028927,2]
[399767274,1766661056497,-150.16,0.00028927,2]
[399767275,1766661056507,-150.0,0.00028927,2]
[399767276,1766661056516,-150.0,0.00028927,2]
[399767277,1766661056526,-150.0,0.00028927,2]
[399767278,1766661056535,-150.0,0.00028927,2]
[399767279,1766661056546,-150.0,0.00028929,2]
[399767280,1766661056555,-481.42,0.00028955,2]
[399767281,1766661056565,-481.42,0.00028955,2]
[399767282,1766661056574,-481.42,0.00028955,2]
[399767283,1766661056584,-481.42,0.00028955,2]
[399767284,1766661056593,-161.0,0.00028997,14]
[399767285,1766661056602,-301.22,0.00029477,2]
[399767286,1766661056612,-150.0,0.00029477,2]
[399767287,1766661056622,-357.08,0.00029532,2]
[399767288,1766661056631,-178.54,0.00029532,2]
[399767289,1766661056640,-178.54,0.00029532,2]
[399767290,1766661056650,-178.54,0.00029532,2]
[399767291,1766661056660,-178.54,0.00029532,2]
[399767292,1766661056669,-178.54,0.00029532,2]
[399767293,1766661056679,-178.54,0.00029532,2]
[399767294,1766661056688,-178.54,0.00029532,2]
[399767295,1766661056698,-178.54,0.00029532,2]
[399767296,1766661056707,-2016.84817673,0.00029757,2]
[399767297,1766661056716,-356.53,0.00029861,2]
[399767298,1766661056727,-178.54,0.00029861,2]
[399767299,1766661056736,-178.54,0.00029861,2]
[399767300,1766661056745,-178.54,0.00029861,2]
[399767301,1766661056754,-178.54,0.00029861,2]
[399767302,1766661056763,-178.54,0.00029861,2]
[399767303,1766661056773,-178.54,0.00029861,2]
[399767304,1766661056783,-178.54,0.00029861,2]
[399767305,1766661056792,-178.54,0.00029861,2]
[399767306,1766661056802,-178.54,0.00029861,2]
[399767307,1766661056812,-178.54,0.00029861,2]
[399767308,1766661056822,-178.54,0.00029861,2]
[399767309,1766661056831,-179.64,0.00029861,2]
[399767310,1766661056841,-178.54,0.00029861,2]
[399767311,1766661056851,-178.54,0.00029861,2]
[399767312,1766661056861,-178.54,0.00029861,2]
[399767313,1766661056871,-178.54,0.00029861,2]
[399767314,1766661056880,-178.54,0.00029861,2]
[399767315,1766661056889,-178.54,0.00029861,2]
[399767316,1766661056900,-178.54,0.00029861,2]
[399767317,1766661056909,-531.21073376,0.000299,2]
[399767318,1766661056918,-1922.31035711,0.000299,2]
[399767319,1766661056927,-481.42,0.00029913,2]
[399767320,1766661056937,-481.42,0.00029913,2]
[399767321,1766661056947,-481.42,0.00029913,2]
[399767322,1766661056956,-481.42,0.00029913,2]
[399767323,1766661056965,-481.42,0.00029913,2]
[399767324,1766661056975,-481.42,0.00029913,2]
[399767325,1766661056984,-481.42,0.00029913,2]
[399767326,1766661056994,-481.42,0.00029913,2]
[399767327,1766661057004,-481.44,0.00029913,2]
[399767328,1766661057014,-962.78,0.00029913,2]
[399767329,1766661057023,-481.42,0.00029913,2]
[399767330,1766661057033,-481.42,0.00029913,2]
[399767331,1766661057042,-481.42,0.00029913,2]
[399767332,1766661057052,-481.42,0.00029913,2]
[399767333,1766661057062,-481.42,0.00029913,2]
[399767334,1766661057073,-481.42,0.00029913,2]
[399767335,1766661057085,-481.42,0.00029913,2]
[399767336,1766661057095,-481.42,0.00029913,2]
[399767337,1766661057105,-481.42,0.00029913,2]
[399767338,1766661057115,-481.42,0.00029913,2]
[399767339,1766661057125,-481.42,0.00029913,2]
[399767340,1766661057134,-481.42,0.00029913,2]
[399767341,1766661057143,-481.42,0.00029913,2]
[399767342,1766661057155,-962.84,0.00029913,2]
[399767343,1766661057164,-481.42,0.00029913,2]
[399767344,1766661057174,-481.42,0.00029913,2]
[399767345,1766661057184,-481.42,0.00029913,2]
[399767346,1766661057194,-481.42,0.00029913,2]
[399767347,1766661057203,-481.42,0.00029913,2]
[399767348,1766661057213,-481.42,0.00029913,2]
[399767349,1766661057223,-481.33,0.00029913,2]
[399767350,1766661057233,-481.44,0.00029913,2]
[399767351,1766661057242,-481.42,0.00029913,2]
[399767352,1766661057251,-481.42,0.00029913,2]
[399767353,1766661057260,-481.42,0.00029913,2]
[399767354,1766661057269,-481.42,0.00029916,2]
[399767355,1766661057279,-481.42,0.00029916,2]
[399767356,1766661057289,-481.42,0.00029916,2]
[399767357,1766661057299,-481.42,0.00029916,2]
[399767358,1766661057308,-481.42,0.00029916,2]
[399767359,1766661057318,-481.42,0.00029916,2]
[399767360,1766661057328,-481.42,0.00029916,2]
[399767361,1766661057339,-481.42,0.00029916,2]
[399767362,1766661057347,-652.67,0.00029916,2]
[399767363,1766661057358,-962.84,0.00029916,2]
[399767364,1766661057367,-481.42,0.00029916,2]
[399767365,1766661057377,-481.42,0.00029916,2]
[399767366,1766661057387,-481.42,0.00029916,2]
[399767367,1766661057396,-962.84,0.00029916,2]
[399767368,1766661057406,-481.42,0.00029916,2]
[399767369,1766661057432,-481.42,0.00029916,2]
[399767370,1766661057443,-481.42,0.00029916,2]
[399767371,1766661057452,-481.42,0.00029916,2]
[399767372,1766661057463,-481.42,0.00029916,2]
[399767373,1766661057473,-481.42,0.00029916,2]
[399767374,1766661057483,-481.42,0.00029916,2]
[399767375,1766661057493,-481.42,0.00029916,2]
[399767376,1766661057503,-481.42,0.00029916,2]
[399767377,1766661057513,-483.39,0.00029916,2]
[399767378,1766661057523,-481.42,0.00029916,2]
[399767379,1766661057533,-481.42,0.00029916,2]
[399767380,1766661057544,-150.37196045,0.00029938,7]
[399767381,1766661057554,-300.0,0.00029999,10]
[399767382,1766661057564,-560.52292834,0.0003,30]
[399767383,1766661057574,-7174.615,0.0003,30]
[399767384,1766661057583,-250.0,0.0003,7]
[399767385,1766661057593,-438915.93958105,0.0003,3]
[399767386,1766661057603,-5007.39379568,0.0003,2]
[399767387,1766661057614,-1000.0,0.0003,8]
[399767388,1766661057624,-1000.0,0.0003,7]
[399767389,1766661057634,-1000.0,0.0003,20]
[399767390,1766661057644,-150.0,0.0003,2]
[399767391,1766661057654,-155.0,0.0003,14]
[399767392,1766661057664,-170.78,0.00030047,2]
[399767393,1766661057675,-300.0,0.00030047,2]
[399767394,1766661057685,-170.78,0.00030047,2]
[399767395,1766661057695,-170.78,0.00030047,2]
[399767396,1766661057705,-150.0,0.00030047,2]
[399767397,1766661057715,-150.0,0.00030047,2]
[399767398,1766661057725,-150.0,0.00030047,2]
[399767399,1766661057735,-150.0,0.00030047,2]
[399767400,1766661057744,-150.0,0.00030047,2]
[399767401,1766661057755,-150.0,0.00030047,2]
[399767402,1766661057766,-150.0,0.00030047,2]
[399767403,1766661057780,-150.0,0.00030047,2]
[399767404,1766661057791,-1219.58,0.00030047,2]
[399767405,1766661057800,-150.0,0.00030047,2]
[399767406,1766661057811,-152.0,0.00030096,3]
[399767407,1766661057821,-3240.1,0.000301,2]
[399767408,1766661057833,-797.67684343,0.000301,2]
[399767409,1766661057843,-267.46074303,0.00030165,2]
[399767410,1766661057852,-161.32,0.000303,30]
[399767411,1766661057862,-161.0,0.00030447,14]
[399767412,1766661057872,-584.3,0.000305,14]
[399767413,1766661057882,-644.13,0.0003057,30]
[399767414,1766661057892,-178.1,0.00030683,2]
[399767415,1766661057902,-357.04,0.00030683,2]
[399767416,1766661057912,-178.54,0.00030696,2]
[399767417,1766661057922,-178.55,0.00030696,2]
[399767418,1766661057931,-178.55,0.00030696,2]
[399767419,1766661057941,-178.55,0.00030696,2]
[399767420,1766661057951,-181.1,0.00030696,2]
[399767421,1766661057961,-158.85431725,0.00030696,2]
[399767422,1766661058277,-19.68568275,0.00030696,2]
[399767423,1766661058287,-178.54,0.00030696,2]
[399767424,1766661058296,-178.55,0.00030696,2]
[399767425,1766661058306,-901.5,0.00030697,30]
[399767426,1766661058317,-4266.16951405,0.00030781,7]
[399767427,1766661058327,-464.96,0.00030807,2]
[399767428,1766661058337,-464.96,0.00030807,2]
[399767429,1766661058347,-464.96,0.00030807,2]
[399767430,1766661058357,-464.96,0.00030807,2]
[399767431,1766661058367,-464.96,0.00030807,2]
[399767432,1766661058377,-985.68,0.00030807,2]
[399767433,1766661058387,-280.59693551,0.0003084,2]
[399767434,1766661058399,-2317.10748491,0.0003084,2]
[399767435,1766661058410,-209.0,0.0003084,30]
[399767436,1766661058419,-300.0,0.00030949,10]
[399767437,1766661058429,-150.0,0.0003095,2]
[399767438,1766661058439,-78571.61931906,0.0003095,2]
[399767439,1766661058453,-150.0,0.00030951,2]
[399767440,1766661058463,-1000.0,0.00031,7]
[399767441,1766661058474,-173.799999,0.00031,4]
[399767442,1766661058484,-1236.85908274,0.00031171,2]
[399767443,1766661058500,-258.55362433,0.00031171,2]
[399767444,1766661058512,-458.87313864,0.00031171,2]
[399767445,1766661058524,-1504.71415429,0.00031171,2]
[399767446,1766661058534,-1327.0,0.00031171,2]
[399767447,1766661058544,-612.0,0.00031171,2]
[399767448,1766661058554,-1248.3962125,0.00031171,2]
[399767449,1766661059393,-1.7e-07,0.00031171,2]
[399767450,1766661059407,-361.60378733,0.00031171,2]
[399767451,1766661059417,-1263.0,0.00031171,2]
[399767452,1766661059427,-432.0,0.00031171,2]
[399767453,1766661059438,-4807.0,0.00031181,2]
[399767454,1766661059449,-481.42,0.00031258,2]
[399767455,1766661059461,-170.45253052,0.000314,30]
[399767456,1766661059472,-2000.0,0.000314,2]
[399767457,1766661059483,-19592.73934138,0.0003143,4]
[399767458,1766661059494,-152.40600789,0.00031495,2]
[399767459,1766661059506,-196.30349889,0.000315,2]
[399767460,1766661059517,-150.0,0.000315,2]
[399767461,1766661059528,-178.47,0.00031518,2]
[399767462,1766661059539,-178.55,0.00031518,2]
[399767463,1766661059550,-178.55,0.00031518,2]
[399767464,1766661059561,-178.55,0.00031518,2]
[399767465,1766661059572,-573.89559161,0.00031567,2]
[399767466,1766661059583,-175.82,0.000316,7]
[399767467,1766661059594,-155.0,0.00031644,14]
[399767468,1766661059604,-150.0,0.00031773,2]
[399767469,1766661059614,-150.0,0.00031773,2]
[399767470,1766661059626,-150.0,0.00031773,2]
[399767471,1766661059638,-300.3,0.00031773,2]
[399767472,1766661059648,-3240.1,0.0003188,2]
[399767473,1766661059659,-161.45083283,0.00032,30]
[399767474,1766661059671,-177.23,0.00032,2]
[399767475,1766661059682,-150.1257689,0.00032,2]
[399767476,1766661059693,-2000.0,0.00032,25]
[399767477,1766661059705,-2000.0,0.00032,25]
[399767478,1766661059717,-1010.0,0.00032,11]
[399767479,1766661059727,-1000.0,0.00032,8]
[399767480,1766661059747,-152.85517104,0.0003216,2]
[399767481,1766661059767,-464.96,0.00032162,2]
[399767482,1766661059779,-464.96,0.00032162,2]
[399767483,1766661059791,-502.81,0.00032162,2]
[399767484,1766661059802,-467.47,0.00032162,2]
[399767485,1766661059813,-464.96,0.00032162,2]
[399767486,1766661059825,-464.96,0.00032162,2]
[399767487,1766661059835,-464.96,0.00032162,2]
[399767488,1766661059847,-464.96,0.00032162,2]
[399767489,1766661059859,-464.96,0.00032162,2]
[399767490,1766661059871,-464.96,0.00032162,2]
[399767491,1766661059882,-464.96,0.00032162,2]
[399767492,1766661059894,-889.2253303,0.000323,2]
[399767493,1766661059905,-178.55,0.0003234,2]
[399767494,1766661059918,-178.55,0.0003234,2]
[399767495,1766661059929,-178.55,0.0003234,2]
[399767496,1766661059940,-178.55,0.0003234,2]
[399767497,1766661059951,-178.55,0.0003234,2]
[399767498,1766661059963,-178.55,0.0003234,2]
[399767499,1766661059974,-178.55,0.0003234,2]
[399767500,1766661059985,-178.55,0.0003234,2]
[399767501,1766661059996,-178.55,0.0003234,2]
[399767502,1766661060007,-178.55,0.0003234,2]
[399767503,1766661060018,-178.55,0.0003234,2]
[399767504,1766661060029,-178.55,0.0003234,2]
[399767505,1766661060040,-177.55,0.0003234,2]
[399767506,1766661060052,-178.55,0.0003234,2]
[399767507,1766661060063,-178.55,0.0003234,2]
[399767508,1766661060077,-178.55,0.0003234,2]
[399767509,1766661060088,-178.55,0.0003234,2]
[399767510,1766661060099,-178.55,0.0003234,2]
[399767511,1766661060116,-178.55,0.0003234,2]
[399767512,1766661060127,-178.55,0.0003234,2]
[399767513,1766661060139,-178.55,0.0003234,2]
[399767514,1766661060152,-244.09,0.0003234,2]
[399767515,1766661060163,-151.0,0.00032353,7]
[399767516,1766661060174,-55741.3394107,0.00032356,18]
[399767517,1766661060186,-152.0,0.00032482,4]
[399767518,1766661060197,-929.92,0.00032491,2]
[399767519,1766661060208,-464.96,0.00032491,2]
[399767520,1766661060219,-464.96,0.00032491,2]
[399767521,1766661060231,-464.96,0.00032491,2]
[399767522,1766661060242,-464.96,0.00032491,2]
[399767523,1766661060255,-464.96,0.00032491,2]
[399767524,1766661060267,-464.96,0.00032491,2]
[399767525,1766661060278,-464.96,0.00032491,2]
[399767526,1766661060291,-464.96,0.00032491,2]
[399767527,1766661060302,-464.99,0.00032491,2]
[399767528,1766661060314,-481.44,0.00032601,2]
[399767529,1766661060326,-481.44,0.00032601,2]
[399767530,1766661060338,-481.42,0.00032601,2]
[399767531,1766661060349,-1061.26536299,0.00032733,7]
[399767532,1766661060361,-4801.47504572,0.000328,2]
[399767533,1766661060372,-164827.23891232,0.000328,2]
[399767534,1766661060385,-209.0,0.0003286,30]
[399767535,1766661060397,-200.0,0.00032876,2]
[399767536,1766661060408,-638.15,0.00032876,30]
[399767537,1766661060419,-638.15,0.00032876,30]
[399767538,1766661060430,-638.15,0.00032876,30]
[399767539,1766661060441,-638.15,0.00032876,30]
[399767540,1766661060453,-638.15,0.00032876,30]
[399767541,1766661060463,-638.15,0.00032876,30]
[399767542,1766661060474,-638.15,0.00032876,30]
[399767543,1766661060490,-638.15,0.00032876,30]
[399767544,1766661060501,-638.15,0.00032876,30]
[399767545,1766661060513,-638.15,0.00032876,30]
[399767546,1766661060524,-638.15,0.00032876,30]
[399767547,1766661060534,-638.15,0.00032876,30]
[399767548,1766661060545,-638.15,0.00032876,30]
[399767549,1766661060558,-638.15,0.00032876,30]
[399767550,1766661060569,-638.15,0.00032876,30]
[399767551,1766661060580,-638.15,0.00032876,30]
[399767552,1766661060591,-638.15,0.00032876,30]
[399767553,1766661060602,-638.15,0.00032876,30]
[399767554,1766661060613,-638.15,0.00032876,30]
[399767555,1766661060624,-638.15,0.00032876,30]
[399767556,1766661060634,-638.15,0.00032876,30]
[399767557,1766661060647,-638.15,0.00032876,30]
[399767558,1766661060659,-638.15,0.00032876,30]
[399767559,1766661060670,-638.18373521,0.00032876,30]
[399767560,1766661060682,-500.0,0.00032876,14]
[399767561,1766661060693,-500.0,0.00032876,14]
[399767562,1766661060817,-500.0,0.00032876,14]
[399767563,1766661060827,-500.0,0.00032876,14]
[399767564,1766661060838,-500.0,0.00032876,14]
[399767565,1766661060848,-500.0,0.00032876,14]
[399767566,1766661060858,-500.0,0.00032876,14]
[399767567,1766661060868,-500.0,0.00032876,14]
[399767568,1766661060879,-500.0,0.00032876,14]
[399767569,1766661060890,-500.0,0.00032876,14]
[399767570,1766661060900,-500.0,0.00032876,14]
[399767571,1766661060910,-500.0,0.00032876,14]
[399767572,1766661060920,-500.0,0.00032876,14]
[399767573,1766661060929,-500.0,0.00032876,14]
[399767574,1766661060939,-500.0,0.00032876,14]
[399767575,1766661060948,-500.0,0.00032876,14]
[399767576,1766661060959,-500.0,0.00032876,14]
[399767577,1766661060969,-500.0,0.00032876,14]
[399767578,1766661060979,-500.0,0.00032876,14]
[399767579,1766661060989,-500.0,0.00032876,14]
[399767580,1766661061000,-500.0,0.00032876,14]
[399767581,1766661061010,-479.47901222,0.00032876,14]
[399767582,1766661061020,-500.0,0.00032876,14]
[399767583,1766661061030,-500.0,0.00032876,14]
[399767584,1766661061041,-421.60829713,0.00032876,2]
[399767585,1766661061052,-500.0,0.00032876,14]
[399767586,1766661061061,-500.0,0.00032876,14]
[399767587,1766661061072,-537.80249507,0.00032876,14]
[399767588,1766661061087,-500.0,0.00032876,90]
[399767589,1766661061098,-500.0,0.00032876,90]
[399767590,1766661061108,-500.0,0.00032876,90]
[399767591,1766661061119,-500.0,0.00032876,90]
[399767592,1766661061129,-500.0,0.00032876,90]
[399767593,1766661061140,-500.0,0.00032876,90]
[399767594,1766661061152,-500.0,0.00032876,90]
[399767595,1766661061163,-500.0,0.00032876,90]
[399767596,1766661061173,-365.29532974,0.00032876,90]
[399767597,1766661061183,-435.46912672,0.00032876,14]
[399767598,1766661061194,-500.0,0.00032876,7]
[399767599,1766661061204,-214.84553531,0.00032876,7]
[399767600,1766661061215,-500.0,0.00032876,2]